bitfinex-derivatives/quotes_SOLF0:USTF0_20250409
["timestamp","ask_amount","ask_price","bid_price","bid_amount"]
[1744167780491,49.5456,103.87,103.79,2.4218]
[1744167780793,0.06323288,103.84,103.82,9.64]
[1744167780986,0.06323288,103.84,103.82,0.06120323]
[1744167781383,0.06323288,103.84,103.82,9.70120323]
[1744167781597,0.06323288,103.84,103.82,0.06120323]
[1744167782498,0.06323288,103.84,103.83,9.6396]
[1744167782686,0.06323288,103.84,103.82,0.06120323]
[1744167782894,0.06323288,103.84,103.82,9.70130323]
[1744167783188,0.06323288,103.84,103.82,0.06120323]
[1744167784195,47.22,103.89,103.82,32.30067164]
[1744167784389,47.22,103.9,103.83,49.6456]
[1744167784590,47.22,103.91,103.86,9.6364]
[1744167784791,47.22,103.91,103.84,34.59226841]
[1744167784991,49.4743,103.91,103.84,2.3528]
[1744167785299,49.4743,103.91,103.85,9.6373]
[1744167785597,9.6353,103.88,103.86,0.06177109]
[1744167786193,9.70549279,103.89,103.86,0.06177109]
[1744167787095,0.07099279,103.89,103.86,0.06177109]
[1744167787302,0.07099279,103.89,103.79,39.26436841]
[1744167787495,47.2,103.9,103.79,39.26436841]
[1744167787800,9.6383,103.85,103.81,9.6413]
[1744167787995,47.2,103.86,103.81,9.6413]
[1744167788195,47.2,103.86,103.79,7.0249]
[1744167788500,0.06204592,103.85,103.82,0.07088054]
[1744167788696,9.6396,103.83,103.82,0.07088054]
[1744167788993,4.78284592,103.85,103.77,238.81747326]
[1744167789198,4.7208,103.85,103.77,79.43946841]
[1744167789698,4.7208,103.85,103.77,47.2]
[1744167790099,0.06970606,103.82,103.8,0.06485006]
[1744167790294,9.6414,103.81,103.8,0.06485006]
[1744167790504,47.28970606,103.82,103.76,11.9285]
[1744167790701,47.22,103.82,103.74,715.21800485]
[1744167790997,9.6429,103.8,103.76,9.6454]
[1744167791200,47.22,103.82,103.74,206.59800485]
[1744167791402,9.6437,103.79,103.75,9.6465]
[1744167791702,0.0731575,103.78,103.76,0.06688397]
[1744167792304,0.0731575,103.78,103.77,9.6451]
[1744167792605,0.0731575,103.78,103.76,0.06688397]
[1744167794006,9.7178575,103.78,103.76,0.06688397]
[1744167794503,0.0731575,103.78,103.77,9.6451]
[1744167794704,47.2931575,103.78,103.76,0.06688397]
[1744167795096,9.6451,103.77,103.76,0.06688397]
[1744167795501,11.8844,103.77,103.69,42.94520482]
[1744167795705,34.48386841,103.77,103.69,40.60220482]
[1744167795903,32.23946841,103.73,103.69,22.34770482]
[1744167796110,47.22,103.72,103.68,159.37800485]
[1744167796405,32.23946841,103.69,103.67,298.41791284]
[1744167796705,47.22,103.68,103.66,332.0375101]
[1744167797008,56.8735,103.68,103.67,2.007e-05]
[1744167797200,56.86,103.68,103.66,268.11333017]
[1744167797405,32.23946841,103.67,103.6,54.04880162]
[1744167797904,56.8738,103.68,103.6,54.04880162]
[1744167798304,0.07098496,103.65,103.6,54.04880162]
[1744167798501,0.07098496,103.65,103.61,9.6597]
[1744167799204,0.07098496,103.65,103.61,47.24]
[1744167799403,0.07098496,103.65,103.62,7.2474]
[1744167799709,47.22,103.68,103.62,39.48686841]
[1744167799907,47.24,103.71,103.62,39.48686841]
[1744167800208,56.8908,103.71,103.66,9.6553]
[1744167800409,47.24,103.71,103.62,39.48686841]
[1744167800803,0.07255299,103.68,103.65,0.06585378]
[1744167801407,0.07255299,103.68,103.65,9.72215378]
[1744167802301,0.07255299,103.68,103.65,0.06585378]
[1744167802606,47.33255299,103.68,103.65,0.06585378]
[1744167803109,9.6551,103.67,103.65,0.06585378]
[1744167803912,9.6551,103.67,103.62,14.4803]
[1744167804207,56.9138,103.68,103.62,4.8217]
[1744167804707,47.26,103.68,103.62,4.8217]
[1744167804904,0.07389493,103.66,103.62,4.8217]
[1744167805409,47.28,103.65,103.57,2.4098]
[1744167805609,556.74,103.65,103.57,2.4098]
[1744167805911,0.07189186,103.62,103.57,12.0727]
[1744167806104,47.35189186,103.62,103.57,12.0727]
[1744167806310,47.35189186,103.62,103.58,9.6627]
[1744167806610,47.35189186,103.62,103.57,2.4098]
[1744167806811,0.07189186,103.62,103.57,34.64926841]
[1744167807208,0.07189186,103.62,103.61,9.66]
[1744167807803,0.07189186,103.62,103.57,34.64926841]
[1744167807804,0.07189186,103.62,103.6,9.6605]
[1744167808210,0.07189186,103.62,103.57,32.23946841]
[1744167808606,0.07189186,103.62,103.6,9.6603]
[1744167809008,0.07189186,103.62,103.57,32.23946841]
[1744167809315,0.07189186,103.62,103.61,9.66]
[1744167809619,556.74,103.65,103.59,32.23946841]
[1744167809813,47.28,103.65,103.59,32.23946841]
[1744167810915,0.06978723,103.63,103.61,0.06762522]
[1744167812014,47.26,103.62,103.61,0.06762522]
[1744167812211,47.26,103.62,103.55,51.8642]
[1744167812419,9.6605,103.61,103.57,9.6635]
[1744167812619,47.26,103.62,103.55,54.2621]
[1744167813406,0.06157202,103.6,103.55,54.2621]
[1744167814315,0.06157202,103.6,103.55,4.5974]
[1744167814520,47.26,103.59,103.56,9.6646]
[1744167814706,47.26,103.59,103.55,2.1995]
[1744167815217,47.26,103.59,103.55,11.8646]
[1744167815513,47.26,103.59,103.55,2.1995]
[1744167815715,47.26,103.59,103.52,4.6915]
[1744167815918,79.49946841,103.59,103.5,2.3872]
[1744167816305,0.07200471,103.56,103.5,2.3872]
[1744167816517,47.28,103.55,103.5,2.3872]
[1744167816810,47.28,103.55,103.51,9.6689]
[1744167817015,0.07270369,103.54,103.5,2.3872]
[1744167817211,9.73970369,103.54,103.5,2.3872]
[1744167817410,0.07270369,103.54,103.5,2.3872]
[1744167817816,9.6675,103.53,103.5,2.3872]
[1744167818016,0.07270369,103.54,103.45,84.21096841]
[1744167818316,9.6694,103.51,103.46,2.2821]
[1744167818519,47.35235983,103.51,103.46,2.2821]
[1744167818921,9.6709,103.5,103.46,2.2821]
[1744167819131,47.35235983,103.51,103.46,2.2821]
[1744167819520,0.07235983,103.51,103.46,2.2821]
[1744167820122,0.07235983,103.51,103.45,60.94362353]
[1744167821124,0.07235983,103.51,103.47,9.6724]
[1744167821325,47.37235983,103.51,103.45,28.70415512]
[1744167821515,47.37235983,103.51,103.42,47.3]
[1744167821912,47.3,103.51,103.42,47.3]
[1744167822119,0.06707672,103.48,103.42,47.3]
[1744167822426,47.3,103.47,103.37,47.3]
[1744167822923,0.06260794,103.43,103.35,32.23946841]
[1744167823121,47.3,103.42,103.35,32.23946841]
[1744167823628,0.07123609,103.4,103.35,32.23946841]
[1744167824022,0.07123609,103.4,103.39,9.6806]
[1744167824219,0.07123609,103.4,103.31,47.3]
[1744167824427,47.3,103.42,103.38,9.681]
[1744167824927,0.06596149,103.41,103.35,79.55946841]
[1744167825227,0.06596149,103.41,103.38,9.6806]
[1744167825431,0.06596149,103.41,103.36,6.7385]
[1744167825730,0.06596149,103.41,103.38,9.6807]
[1744167826432,0.06596149,103.41,103.36,6.7385]
[1744167826728,0.06596149,103.41,103.38,9.6813]
[1744167826935,9.74476149,103.41,103.36,6.7385]
[1744167827435,0.06596149,103.41,103.36,6.7385]
[1744167827625,510.2,103.49,103.39,32.23946841]
[1744167827830,510.2,103.49,103.39,79.57946841]
[1744167828331,542.43946841,103.49,103.39,79.57946841]
[1744167828527,9.6775,103.43,103.39,9.6799]
[1744167828933,47.34,103.44,103.4,9.6795]
[1744167829138,47.34,103.47,103.4,47.409105]
[1744167829435,0.06548569,103.43,103.4,47.409105]
[1744167829633,47.34,103.47,103.42,9.74016688]
[1744167829634,9.6741,103.46,103.42,9.74016688]
[1744167830031,47.34,103.47,103.42,0.06286688]
[1744167830737,9.6755,103.45,103.42,0.06286688]
[1744167831136,9.6755,103.45,103.42,9.74066688]
[1744167831732,9.73963955,103.46,103.42,9.74066688]
[1744167832540,0.06513955,103.46,103.42,9.74066688]
[1744167833138,9.73963955,103.46,103.42,9.74066688]
[1744167833338,0.06513955,103.46,103.42,0.06286688]
[1744167833530,0.06513955,103.46,103.42,4.85676688]
[1744167833730,0.06513955,103.46,103.44,9.6754]
[1744167834038,0.06513955,103.46,103.42,2.42166688]
[1744167834429,9.6754,103.45,103.42,2.42166688]
[1744167834830,0.06513955,103.46,103.42,2.42166688]
[1744167835235,0.06513955,103.46,103.39,32.23946841]
[1744167835538,47.34,103.47,103.4,47.36]
[1744167835731,47.34,103.47,103.44,9.6754]
[1744167836437,57.07578101,103.47,103.44,9.7395896]
[1744167837137,57.07578101,103.47,103.44,6.35458742]
[1744167837333,0.06218101,103.47,103.46,9.674]
[1744167837540,99.08293894,103.5,103.44,32.30365801]
[1744167837837,61.39363894,103.5,103.47,9.6726]
[1744167838030,51.72293894,103.5,103.44,32.23946841]
[1744167838538,51.72293894,103.5,103.46,9.6735]
[1744167838740,0.06988498,103.48,103.46,9.74346077]
[1744167839035,0.06988498,103.48,103.43,47.36]
[1744167839536,47.42988498,103.48,103.44,9.6754]
[1744167839737,9.6736,103.47,103.44,9.6754]
[1744167840137,9.74485866,103.47,103.44,9.74797331]
[1744167840532,0.07125866,103.47,103.44,0.07257331]
[1744167841038,9.74495866,103.47,103.44,0.07257331]
[1744167841735,0.07125866,103.47,103.44,0.07257331]
[1744167841930,515.23375866,103.47,103.38,2.3187]
[1744167842131,515.1625,103.47,103.38,2.3187]
[1744167842832,9.6758,103.45,103.41,9.6783]
[1744167843033,56.9758,103.45,103.41,9.6783]
[1744167843235,0.07048799,103.44,103.41,9.6783]
[1744167843533,0.07048799,103.44,103.39,81.97666841]
[1744167843932,0.07048799,103.44,103.41,9.6783]
[1744167844841,0.07048799,103.44,103.4,9.6792]
[1744167845045,0.07048799,103.44,103.39,2.4372]
[1744167845340,0.07048799,103.44,103.39,34.67666841]
[1744167845544,0.07048799,103.44,103.42,9.6777]
[1744167845836,0.07048799,103.44,103.39,34.67666841]
[1744167846033,51.72293894,103.49,103.41,32.23946841]
[1744167846232,51.72293894,103.49,103.43,32.23946841]
[1744167846538,51.72293894,103.49,103.44,4.6183]
[1744167846935,61.39423894,103.49,103.44,4.6183]
[1744167847139,51.72293894,103.49,103.44,4.6183]
[1744167847441,0.06541827,103.48,103.45,0.07048799]
[1744167847645,0.06541827,103.48,103.47,9.6731]
[1744167847939,0.06541827,103.48,103.45,0.07048799]
[1744167848843,0.06541827,103.48,103.46,9.6736]
[1744167849141,0.06541827,103.48,103.45,0.07048799]
[1744167849340,0.06541827,103.48,103.45,47.37048799]
[1744167849643,51.72293894,103.52,103.47,32.23946841]
[1744167849840,51.72293894,103.52,103.49,32.23946841]
[1744167850044,40.75463894,103.52,103.51,9.6694]
[1744167851441,29.78723894,103.52,103.51,9.6694]
[1744167852442,0.06170043,103.53,103.52,9.6684]
[1744167853044,0.06170043,103.53,103.51,9.6689]
[1744167853646,0.06170043,103.53,103.51,9.6694]
[1744167854340,12.93073473,103.57,103.51,79.53946841]
[1744167855140,12.93073473,103.59,103.51,79.53946841]
[1744167855344,60.23073473,103.59,103.51,79.53946841]
[1744167855541,0.06382359,103.56,103.54,0.0609754]
[1744167856244,47.36382359,103.56,103.54,0.0609754]
[1744167856845,9.6656,103.55,103.54,0.0609754]
[1744167858149,0.06382359,103.56,103.54,0.0609754]
[1744167858651,0.06382359,103.56,103.55,9.6656]
[1744167858948,0.06382359,103.56,103.54,0.0609754]
[1744167859345,0.06382359,103.56,103.54,9.7274754]
[1744167859554,0.06382359,103.56,103.54,0.0609754]
[1744167859745,0.06382359,103.56,103.55,9.6656]
[1744167859947,0.06382359,103.56,103.54,0.0609754]
[1744167860351,0.06382359,103.56,103.55,9.6656]
[1744167862557,0.06382359,103.56,103.54,9.7271754]
[1744167863153,0.06382359,103.56,103.54,0.0609754]
[1744167863654,0.06382359,103.56,103.54,9.7269754]
[1744167863854,9.72872359,103.56,103.54,0.0609754]
[1744167864549,0.06382359,103.56,103.54,0.0609754]
[1744167865457,9.6656,103.55,103.54,0.0609754]
[1744167865653,14.433,103.55,103.54,0.0609754]
[1744167865858,4.7674,103.55,103.47,49.4803]
[1744167866054,7.0797,103.55,103.47,49.4803]
[1744167866257,9.669,103.52,103.48,9.6716]
[1744167866756,9.669,103.52,103.49,9.6711]
[1744167866954,0.07065789,103.51,103.49,0.06874123]
[1744167867461,0.07065789,103.51,103.5,9.6703]
[1744167867652,56.9452,103.56,103.5,9.6703]
[1744167867653,47.28,103.56,103.5,47.26]
[1744167867961,47.28,103.56,103.53,9.667]
[1744167868156,51.9362,103.59,103.5,47.26]
[1744167868359,51.9362,103.59,103.51,32.23946841]
[1744167868553,51.9362,103.59,103.53,32.23946841]
[1744167868752,0.0730044,103.56,103.54,0.0694275]
[1744167869661,9.7381044,103.56,103.54,0.0694275]
[1744167869856,0.0730044,103.56,103.54,0.0694275]
[1744167870162,9.6656,103.55,103.54,0.0694275]
[1744167873361,0.0730044,103.56,103.54,0.0694275]
[1744167873865,9.7381044,103.56,103.54,0.0694275]
[1744167874564,9.6656,103.55,103.54,0.0694275]
[1744167875970,47.2930044,103.56,103.54,0.0694275]
[1744167876463,0.0730044,103.56,103.54,9.7358275]
[1744167876966,0.0730044,103.56,103.54,0.0694275]
[1744167877360,0.0730044,103.56,103.54,9.7358275]
[1744167878367,0.0730044,103.56,103.54,0.0694275]
[1744167879570,9.6656,103.55,103.54,0.0694275]
[1744167879763,0.0730044,103.56,103.54,0.0694275]
[1744167882471,9.6656,103.55,103.54,0.0694275]
[1744167883371,47.2930044,103.56,103.49,47.22]
[1744167883572,47.22,103.56,103.49,47.22]
[1744167883969,9.6691,103.52,103.49,47.22]
[1744167884367,47.22,103.53,103.46,47.22]
[1744167884570,2.4112,103.51,103.49,0.06749879]
[1744167884772,2.4112,103.51,103.43,56.8964]
[1744167884773,47.22,103.5,103.43,56.8964]
[1744167884969,9.6741,103.46,103.43,47.22]
[1744167885270,47.22,103.5,103.41,4.7212]
[1744167885471,9.6741,103.46,103.41,4.7212]
[1744167885776,47.22,103.47,103.4,79.45946841]
[1744167886074,47.22,103.47,103.42,0.0703629]
[1744167886075,0.06866403,103.45,103.42,0.0703629]
[1744167886765,9.6768,103.43,103.42,0.0703629]
[1744167887071,0.06866403,103.45,103.42,0.0703629]
[1744167887374,9.6766,103.44,103.42,0.0703629]
[1744167887576,0.06866403,103.45,103.42,0.0703629]
[1744167887873,47.24,103.44,103.37,9.6819]
[1744167888062,47.24,103.44,103.36,4.7448]
[1744167888264,47.24,103.44,103.35,32.23946841]
[1744167889067,9.74780506,103.41,103.35,32.23946841]
[1744167890280,9.68,103.4,103.35,32.23946841]
[1744167890673,9.74490876,103.39,103.33,549.56996841]
[1744167891074,0.06410876,103.39,103.33,549.56996841]
[1744167891374,0.06410876,103.39,103.33,39.26996841]
[1744167892178,0.06410876,103.39,103.36,9.6828]
[1744167892380,0.06410876,103.39,103.33,39.26996841]
[1744167892780,9.6826,103.37,103.33,44.32216841]
[1744167892976,2.46970876,103.39,103.33,34.63666841]
[1744167893281,0.07258051,103.36,103.33,34.63666841]
[1744167893875,0.07258051,103.36,103.32,47.26]
[1744167894570,0.07258051,103.36,103.34,9.6848]
[1744167895282,0.07258051,103.36,103.35,9.6843]
[1744167896184,0.07258051,103.36,103.32,47.26]
[1744167896486,2.3108,103.4,103.35,32.23946841]
[1744167896681,2.3108,103.4,103.38,9.6815]
[1744167897185,47.26,103.41,103.37,9.682]
[1744167897377,47.26,103.41,103.35,79.51946841]
[1744167897573,0.07001744,103.4,103.38,0.06510931]
[1744167897778,0.07001744,103.4,103.34,9.6848]
[1744167897979,47.26,103.41,103.34,9.6848]
[1744167898185,9.6821,103.38,103.33,32.23946841]
[1744167898484,47.26,103.41,103.33,32.23946841]
[1744167898881,9.6811,103.39,103.35,9.6838]
[1744167899087,0.06364367,103.38,103.35,9.6838]
[1744167899387,0.06364367,103.38,103.35,47.28]
[1744167899685,0.06364367,103.38,103.36,9.6827]
[1744167900190,0.06364367,103.38,103.35,47.28]
[1744167900484,4.4947,103.43,103.35,47.28]
[1744167900687,9.6793,103.41,103.38,9.6814]
[1744167900878,4.4947,103.43,103.35,79.51946841]
[1744167901388,9.6801,103.4,103.35,79.51946841]
[1744167901585,9.74337936,103.4,103.38,0.07004212]
[1744167901989,9.6806,103.39,103.38,0.07004212]
[1744167902480,0.06327936,103.4,103.38,0.07004212]
[1744167904086,0.06327936,103.4,103.39,9.6806]
[1744167904588,49.606,103.47,103.38,47.31004212]
[1744167904794,54.2561,103.47,103.38,47.24]
[1744167905385,54.2561,103.47,103.41,9.6787]
[1744167905585,54.2561,103.47,103.38,49.4898]
[1744167905787,0.07428854,103.45,103.43,0.0667137]
[1744167906181,9.6759,103.44,103.43,0.0667137]
[1744167909193,0.07428854,103.45,103.38,47.24]
[1744167909385,47.24,103.44,103.38,56.921]
[1744167909587,47.24,103.44,103.38,9.681]
[1744167910391,0.06694909,103.42,103.4,0.06768053]
[1744167910993,9.74524909,103.42,103.4,0.06768053]
[1744167911194,0.06694909,103.42,103.4,0.06768053]
[1744167911696,0.06694909,103.42,103.4,9.74688053]
[1744167911991,0.06694909,103.42,103.4,0.06768053]
[1744167912695,9.6787,103.41,103.4,0.06768053]
[1744167912897,0.06694909,103.42,103.4,0.06768053]
[1744167913196,9.6787,103.41,103.4,0.06768053]
[1744167913691,0.06694909,103.42,103.4,0.06768053]
[1744167913900,47.24,103.41,103.32,47.24]
[1744167914102,4.6198,103.4,103.32,47.24]
[1744167914796,9.6838,103.36,103.31,36.98376841]
[1744167915096,47.24,103.37,103.31,36.98376841]
[1744167915298,0.06659964,103.35,103.31,36.98376841]
[1744167915688,0.06659964,103.35,103.33,9.6857]
[1744167916999,0.06659964,103.35,103.32,9.6867]
[1744167917601,9.75089964,103.35,103.31,34.58636841]
[1744167917904,0.06659964,103.35,103.31,34.58636841]
[1744167918097,9.75129964,103.35,103.32,9.6866]
[1744167918294,0.06659964,103.35,103.27,32.23946841]
[1744167918594,14.2974,103.34,103.3,9.6883]
[1744167918796,0.06399513,103.32,103.27,34.45576841]
[1744167919097,0.06399513,103.32,103.27,39.11446841]
[1744167919300,0.06399513,103.32,103.3,9.6884]
[1744167919499,0.06399513,103.32,103.27,39.11446841]
[1744167919700,0.06399513,103.32,103.29,32.23946841]
[1744167919902,0.06399513,103.32,103.29,79.47946841]
[1744167920203,9.75169513,103.32,103.28,9.6904]
[1744167920895,0.06399513,103.32,103.28,32.23946841]
[1744167921313,0.06399513,103.32,103.28,9.6903]
[1744167921601,9.75179513,103.32,103.28,9.6903]
[1744167921787,0.06399513,103.32,103.27,2.2163]
[1744167921999,47.32399513,103.32,103.25,47.24]
[1744167922293,47.26,103.32,103.25,47.24]
[1744167922495,0.06968062,103.3,103.26,32.23946841]
[1744167922704,0.06968062,103.3,103.26,34.43346841]
[1744167923004,0.06968062,103.3,103.27,9.6916]
[1744167923196,0.06968062,103.3,103.26,32.23946841]
[1744167923399,0.06968062,103.3,103.25,47.24]
[1744167923600,9.75868062,103.3,103.26,9.6919]
[1744167923902,0.06968062,103.3,103.25,47.24]
[1744167924104,0.06968062,103.3,103.27,9.6918]
[1744167924600,0.06968062,103.3,103.25,79.47946841]
[1744167924805,0.06968062,103.3,103.26,2.242]
[1744167925301,0.06968062,103.3,103.27,32.23946841]
[1744167925504,52.15631402,103.38,103.29,32.23946841]
[1744167925705,56.86691402,103.38,103.31,32.23946841]
[1744167926004,56.86691402,103.38,103.31,79.49946841]
[1744167926402,9.6829,103.37,103.33,9.6857]
[1744167926609,12.93073473,103.35,103.33,9.6857]
[1744167926905,12.93073473,103.35,103.33,0.06841145]
[1744167927398,9.6853,103.34,103.33,0.06841145]
[1744167927604,12.93073473,103.35,103.33,0.06841145]
[1744167929505,22.61563473,103.35,103.33,0.06841145]
[1744167929708,12.93073473,103.35,103.33,0.06841145]
[1744167930397,9.75118017,103.36,103.33,0.06841145]
[1744167930903,9.75118017,103.36,103.33,9.75461145]
[1744167931206,0.06738017,103.36,103.33,0.06841145]
[1744167931506,9.6848,103.35,103.33,0.06841145]
[1744167932203,0.06738017,103.36,103.33,0.06841145]
[1744167932505,0.06738017,103.36,103.33,2.43581145]
[1744167932700,0.06738017,103.36,103.35,9.6843]
[1744167932902,0.06738017,103.36,103.33,0.06841145]
[1744167934296,0.06738017,103.36,103.33,9.75411145]
[1744167935211,0.06738017,103.36,103.33,0.06841145]
[1744167935603,9.6848,103.35,103.33,0.06841145]
[1744167936411,0.06738017,103.36,103.33,0.06841145]
[1744167937513,9.6849,103.35,103.33,0.06841145]
[1744167939009,9.6853,103.34,103.33,0.06841145]
[1744167939312,0.06738017,103.36,103.33,0.06841145]
[1744167939705,9.6847,103.35,103.33,0.06841145]
[1744167940106,9.6867,103.33,103.3,9.6885]
[1744167940411,2.4129,103.34,103.29,47.22]
[1744167941411,0.06722446,103.33,103.29,47.22]
[1744167941611,0.06722446,103.33,103.27,2.357]
[1744167941816,9.6886,103.31,103.27,9.6915]
[1744167942209,9.6876,103.32,103.28,9.6908]
[1744167942408,0.06778096,103.3,103.26,543.64562057]
[1744167942604,0.06778096,103.3,103.28,32.40562057]
[1744167942817,12.0984,103.34,103.3,9.6882]
[1744167943902,12.0984,103.34,103.31,0.06905013]
[1744167943903,0.06473465,103.33,103.31,0.06905013]
[1744167944108,9.75103465,103.33,103.31,0.06905013]
[1744167944510,0.06473465,103.33,103.31,0.06905013]
[1744167945219,9.75143465,103.33,103.31,0.06905013]
[1744167946419,47.28473465,103.33,103.25,49.4786]
[1744167946711,47.22,103.33,103.25,47.22]
[1744167947613,0.06274586,103.3,103.25,47.22]
[1744167947819,2.4014,103.36,103.29,32.40562057]
[1744167948013,2.4014,103.36,103.3,47.24]
[1744167948315,2.4223,103.37,103.3,47.24]
[1744167948616,9.684,103.36,103.32,9.6866]
[1744167948812,0.06340063,103.35,103.3,47.24]
[1744167949021,9.74830063,103.35,103.33,0.06274586]
[1744167949217,0.06340063,103.35,103.33,0.06274586]
[1744167949720,0.06340063,103.35,103.33,9.74844586]
[1744167950017,0.06340063,103.35,103.33,0.06274586]
[1744167950619,0.06340063,103.35,103.34,9.6853]
[1744167950917,0.06340063,103.35,103.33,0.06274586]
[1744167954213,0.06340063,103.35,103.34,9.6853]
[1744167954414,0.06340063,103.35,103.33,0.06274586]
[1744167954720,0.06340063,103.35,103.33,9.74844586]
[1744167955217,0.06340063,103.35,103.33,47.30274586]
[1744167955422,0.06340063,103.35,103.34,9.6853]
[1744167956513,0.06340063,103.35,103.33,56.98844586]
[1744167956718,0.06340063,103.35,103.33,0.06274586]
[1744167956918,0.06340063,103.35,103.34,9.6853]
[1744167957516,2.3969,103.4,103.38,9.6815]
[1744167957715,2.3969,103.4,103.34,49.6072]
[1744167958115,2.3969,103.4,103.37,9.6819]
[1744167958622,12.077,103.4,103.37,9.6819]
[1744167958919,12.15129178,103.4,103.37,9.75140123]
[1744167959121,0.07429178,103.4,103.38,9.6812]
[1744167959523,0.07429178,103.4,103.37,47.28950123]
[1744167959720,0.07429178,103.4,103.39,9.6806]
[1744167961133,0.07429178,103.4,103.37,0.06950123]
[1744167961519,9.75469178,103.4,103.37,0.06950123]
[1744167961922,9.6812,103.39,103.37,0.06950123]
[1744167962229,0.07429178,103.4,103.37,0.06950123]
[1744167962529,9.75439178,103.4,103.37,0.06950123]
[1744167962819,0.07429178,103.4,103.37,0.06950123]
[1744167963230,9.681,103.39,103.37,0.06950123]
[1744167963931,4.83579178,103.4,103.37,0.06950123]
[1744167964429,7.21959178,103.4,103.37,0.06950123]
[1744167965225,4.83579178,103.4,103.37,0.06950123]
[1744167965529,0.07429178,103.4,103.38,20.23111909]
[1744167965733,0.07429178,103.4,103.39,9.6806]
[1744167965931,0.07429178,103.4,103.38,20.23111909]
[1744167966131,0.07429178,103.4,103.37,58.07150123]
[1744167966432,0.07429178,103.4,103.37,48.38950123]
[1744167966730,0.07429178,103.4,103.39,9.6806]
[1744167966932,22.60713473,103.44,103.38,20.23111909]
[1744167967130,12.93073473,103.44,103.38,20.23111909]
[1744167967431,9.6774,103.43,103.39,9.6799]
[1744167967632,12.93073473,103.44,103.4,68.55111909]
[1744167967835,12.93073473,103.44,103.42,9.6774]
[1744167968026,12.93073473,103.44,103.4,68.55111909]
[1744167968231,0.06979309,103.43,103.41,0.06884071]
[1744167968926,0.06979309,103.43,103.42,9.6778]
[1744167969132,0.06979309,103.43,103.41,0.06884071]
[1744167969730,0.06979309,103.43,103.41,9.74704071]
[1744167970532,0.06979309,103.43,103.41,0.06884071]
[1744167970738,2.37969309,103.43,103.36,48.32]
[1744167970930,2.37969309,103.43,103.34,32.33519922]
[1744167971131,9.6795,103.41,103.37,9.6819]
[1744167971828,9.74854819,103.4,103.38,0.07168354]
[1744167972531,9.6806,103.39,103.38,0.07168354]
[1744167972733,0.06874819,103.4,103.32,543.41519922]
[1744167972937,48.32,103.4,103.32,511.08]
[1744167973136,48.32,103.4,103.31,48.32]
[1744167973336,9.6839,103.36,103.32,9.6868]
[1744167973933,9.6839,103.36,103.33,0.05991402]
[1744167974139,0.06496214,103.35,103.33,0.05991402]
[1744167974542,9.74956214,103.35,103.33,0.05991402]
[1744167974740,0.06496214,103.35,103.33,0.05991402]
[1744167975639,0.06496214,103.35,103.34,9.6853]
[1744167976542,0.06496214,103.35,103.33,9.74581402]
[1744167976837,0.06496214,103.35,103.33,0.05991402]
[1744167977543,0.06496214,103.35,103.34,48.32]
[1744167978143,0.06496214,103.35,103.33,0.05991402]
[1744167979743,9.6853,103.34,103.33,0.05991402]
[1744167979939,0.06496214,103.35,103.28,90.34539922]
[1744167980245,2.2954,103.36,103.28,80.65519922]
[1744167980747,9.6876,103.32,103.28,90.34529922]
[1744167981238,0.06133636,103.31,103.28,80.65519922]
[1744167981643,0.06133636,103.31,103.28,90.34569922]
[1744167981841,0.06133636,103.31,103.28,80.65519922]
[1744167982146,2.2954,103.36,103.31,9.6875]
[1744167982348,2.2954,103.36,103.29,2.3021]
[1744167983143,9.6848,103.35,103.31,9.6875]
[1744167983345,0.0618024,103.34,103.31,9.74883636]
[1744167983746,9.7472024,103.34,103.31,9.74883636]
[1744167984048,9.7472024,103.34,103.31,0.06133636]
[1744167984644,9.7472024,103.34,103.31,9.74943636]
[1744167986448,9.687,103.33,103.31,0.06133636]
[1744167986950,0.0618024,103.34,103.31,0.06133636]
[1744167988145,0.0618024,103.34,103.32,9.6871]
[1744167988748,0.0618024,103.34,103.31,48.40133636]
[1744167989140,9.6867,103.33,103.31,48.40133636]
[1744167989347,0.0618024,103.34,103.31,0.06133636]
[1744167989744,0.0618024,103.34,103.32,9.6866]
[1744167989945,0.0618024,103.34,103.31,48.40133636]
[1744167990348,0.0618024,103.34,103.31,58.08883636]
[1744167990753,0.0618024,103.34,103.31,48.40133636]
[1744167992052,9.7476024,103.34,103.31,58.08923636]
[1744167992555,9.7476024,103.34,103.31,48.40133636]